Cogmind - Beta 13 @@@ ROGUE MODE // 2024.04.17 @ 18:24:31 Player: Oldman Pu Result: Self-destructed Performance ------------- Evolutions (1) 500 Regions Visited (2) 400 Robots Destroyed (25) 125 Value Destroyed (592) 592 Prototype IDs (0) 0 Alien Tech Used (0) 0 Bonus (0) 0 TOTAL SCORE: 1617 Bonus ------- None Cogmind --------- Core Integrity 339/400 Matter 268/300 Energy 100/100 System Corruption 0% Temperature Cool (0) Movement Core (350) Ox6 Location -9/Materials Parts ------- > --- POWER (1) -------- (None) > --- PROPULSION (3) --- (None) > --- UTILITY (3) ------ Large Storage Unit Propulsion Shielding > --- WEAPON (2) ------- (None) > --- INVENTORY (15) --- Ion Engine Heat Sink Heat Sink High-capacity Storage Unit Targeting Computer Peak State ------------ > --- POWER ------------ Ion Engine > --- PROPULSION ------- Wheel Compact Wheel > --- UTILITY ---------- Large Storage Unit Visual Processing Unit > --- WEAPON ----------- Medium Laser Medium Laser > --- INVENTORY -------- Ion Engine [Rating: 8] Favorites ----------- Power Ion Engine Engine Ion Engine Propulsion Compact Wheel Treads Light Treads Leg Aluminum Leg Wheel Compact Wheel Flight Unit Flight Unit Utility Large Storage Unit Device Heat Sink Storage Large Storage Unit Processor Visual Processing Unit Protection Propulsion Shielding Weapon Medium Laser Energy Gun Medium Laser Ballistic Gun Light Assault Rifle Build | -11 -10 -9 ------- Run | Yrd Mat Mat Slots Evolved 2 | . . 2 Power . | . . . Propulsion 1 | . . 1 Utility 1 | . . 1 Weapon . | . . . Parts Attached 29 | 6 18 5 Power 3 | 1 2 . Engine 3 | 1 2 . Core . | . . . Reactor . | . . . Propulsion 10 | 2 7 1 Treads 2 | . 2 . Leg 2 | . 2 . Wheel 4 | 2 1 1 Hover . | . . . Flight 2 | . 2 . Utility 7 | 1 4 2 Device 1 | . 1 . Storage 2 | 1 1 . Processor 1 | . 1 . Hackware . | . . . Protection 3 | . 1 2 Artifact . | . . . Weapon 9 | 2 5 2 Energy Gun 7 | 2 5 . Energy Cannon . | . . . Ballistic Gun 2 | . . 2 Ballistic Cannon . | . . . Launcher . | . . . Special Weapon . | . . . Impact Weapon . | . . . Slashing Weapon . | . . . Piercing Weapon . | . . . Special Melee Weapon . | . . . Unidentified Prototypes . | . . . Parts Lost 5 | . . 5 Power 1 | . . 1 Propulsion 1 | . . 1 Utility 1 | . . 1 Weapon 2 | . . 2 Highest Loss Streak 5 | . . 5 To Critical Strikes . | . . . Average Slot Usage (%) 92 | . 94 66 Engine 13 | . 14 8 Treads 5 | . 6 . Leg 6 | . 7 . Wheel 13 | . 13 8 Device 8 | . 8 . Storage 13 | . 14 11 Protection 1 | . . 20 Energy Gun 26 | . 27 15 Naked Turns . | . . . Heaviest Build 34 | 14 34 34 Greatest Support 40 | 26 40 16 Greatest Overweight (x) 10 | 3 10 6 Average Overweight (x) . | . . 2 Largest Inventory Capacity 15 | 8 15 15 Average Capacity 14 | 7 14 15 Most Carried 9 | 1 9 8 Average Carried 5 | . 5 5 Final Capacity 15 | 8 15 15 Final Carried 9 | 1 9 5 Class Distribution -------------------- 50% | Scavenger-Mutant 49% | Mutant Dominant Class ---------------- Scavenger-Mutant | -10/Materials Mutant | -9/Materials Resources | -11 -10 -9 ----------- Run | Yrd Mat Mat Matter Collected 447 | 169 278 . Remotely . | . . . Salvage Created 847 | . 767 80 Parts 44 | . 40 4 Haulers Intercepted 2 | . 2 . Recyclers Shooed 1 | . 1 . Parts Field Recycled . | . . . Retrieved Matter . | . . . Parts Self-Destructed . | . . . Prevented . | . . . Kills | -11 -10 -9 ------- Run | Yrd Mat Mat Combat Hostiles Destroyed 17 | . 15 2 Guns 14 | . 12 2 Classes Destroyed 7 | . 7 . Worker 2 | . 2 . Hauler 2 | . 2 . Recycler 1 | . 1 . Operator 1 | . 1 . Watcher 2 | . 2 . Swarmer 3 | . 3 . Grunt 14 | . 12 2 Best Kill Streak 6 | . 6 2 Combat Bots Only 6 | . 6 2 Max Kills in Single Turn 2 | . 2 1 Gunslinging . | . . . Exploded . | . . . Melee . | . . . Uniques/NPCs Destroyed . | . . . Combat | -11 -10 -9 -------- Run | Yrd Mat Mat Hostile Shots Fired 87 | . 72 15 Missed 17 | . 15 2 Damage Taken 993 | . 615 378 Core 253 | . 192 61 Absorbed by Shields . | . . . Redirected to Shielding 14 | . 3 11 Regen/Repaired (Parts) 48 | . 48 . Core Remaining (%) 61 | 100 23 . Volleys Fired 76 | . 61 15 Largest 2 | . 2 2 Hottest 115 | . 115 115 Shots Fired 138 | . 120 18 Gun 138 | . 120 18 Cannon . | . . . Launcher . | . . . Special . | . . . Kinetic 7 | . . 7 Thermal 131 | . 120 11 Explosive . | . . . Electromagnetic . | . . . Robot Hit Streak 14 | . 12 14 Robot Miss Streak 3 | . 3 1 Penetration Max . | . . . Secondary Targets . | . . . Shots Hit Robots 97 | . 83 14 Core Hits 40 | . 34 6 Critical Kills . | . . . Critical Parts Destroyed . | . . . Critical Strikes 10 | . 10 . Burn 10 | . 10 . Melee Attacks . | . . . Impact . | . . . Slashing . | . . . Piercing . | . . . Sneak Attacks . | . . . Combat Hostiles . | . . . Follow-up Attacks . | . . . Damage Inflicted 1286 | . 1141 145 Guns 1286 | . 1141 145 Cannons . | . . . Explosions . | . . . Melee . | . . . Ramming . | . . . Kinetic 43 | . . 43 Thermal 1243 | . 1141 102 Explosive . | . . . Electromagnetic . | . . . Impact . | . . . Slashing . | . . . Piercing . | . . . Highest Corruption 3 | . 3 . Average Corruption 2 | . 2 . Corruption Purged . | . . . Corruption Blocked . | . . . Effects 6 | . 6 . Message Errors 1 | . 1 . Matter Fused 1 | . 1 . Parts Rejected 1 | . 1 . Data Loss (minor) 2 | . 2 . Alerts 1 | . 1 . Overload Shots . | . . . Overflow Damage . | . . . Projectiles . | . . . Explosions . | . . . Melee . | . . . Knockbacks . | . . . Impact . | . . . Kinetic . | . . . Secondary . | . . . Self-Inflicted Damage . | . . . Shots . | . . . Rammed . | . . . Targets Rammed . | . . . Kicked . | . . . Crushed . | . . . Highest Temperature 280 | . 280 209 Average Temperature 99 | . 95 137 Received Heat Transfer 276 | . 264 12 Siege Activations . | . . . Robots Corrupted . | . . . Combat Hostiles . | . . . Parts Fried . | . . . Impact Corruptions . | . . . Robots Melted 3 | . 3 . Combat Hostiles 3 | . 3 . Parts Melted 12 | . 12 . Heat Transferred 4181 | . 3885 296 Parts Sabotaged . | . . . Parts Stolen . | . . . Parts Stripped . | . . . Power Chain Reactions . | . . . Alert | -11 -10 -9 ------- Run | Yrd Mat Mat Peak Influence 326 | . 326 120 Initial 79 | . . 79 Average 145 | . 158 83 Maximum Alert Level 1 | . 1 . Low Security (%) 76 | 100 73 100 Level 1 23 | . 26 . Level 2 . | . . . Level 3 . | . . . Level 4 . | . . . Level 5 . | . . . High Security . | . . . Max Security . | . . . Squads Dispatched 4 | . 4 . Investigation 3 | . 3 . Extermination . | . . . Reinforcement 1 | . 1 . Assault . | . . . Garrison . | . . . Intercept . | . . . Searches Triggered . | . . . Construction Impeded . | . . . Haulers Reinforced . | . . . Active Scanning Responses . | . . . Cargo Convoy Interrupts . | . . . Stealth | -11 -10 -9 --------- Run | Yrd Mat Mat Distress Signals 1 | . 1 . Communications Jammed . | . . . Distress Signals . | . . . Times Spotted 26 | . 22 4 Peak Tracking Total 7 | . 7 2 Tactical Retreats 2 | . 2 . Traps | -11 -10 -9 ------- Run | Yrd Mat Mat Traps Triggered 3 | . 3 . Indirectly . | . . . Trap Hack Attempts . | . . . Triggered . | . . . Disarmed . | . . . Reprogrammed . | . . . Reused . | . . . Traps Extracted . | . . . Installed . | . . . Triggered . | . . . Machines | -11 -10 -9 ---------- Run | Yrd Mat Mat Machines Disabled . | . . . Max in Single Turn . | . . . Machines Repaired . | . . . Machines Dismantled . | . . . Machines Sabotaged . | . . . Overloaded Fab Kills . | . . . Hacking | -11 -10 -9 --------- Run | Yrd Mat Mat Machines Accessed 4 | . 4 . Terminals 3 | . 3 . Fabricators . | . . . Repair Stations 1 | . 1 . Recycling Units . | . . . Scanalyzers . | . . . Garrison Access . | . . . Total Hacks 15 | . 15 . Successful 8 | . 8 . Failed 7 | . 7 . Catastrophic 1 | . 1 . Database Lockouts . | . . . Manual . | . . . Terminals 9 | . 9 . Fabricators . | . . . Repair Stations 6 | . 6 . Recycling Units . | . . . Scanalyzers . | . . . Garrison Access . | . . . Terminal Hacks 5 | . 5 . Record 3 | . 3 . Repair Station Index 1 | . 1 . Locate Traps 1 | . 1 . Fabricator Hacks . | . . . Repair Station Hacks 3 | . 3 . Scan Component 2 | . 2 . Repair 1 | . 1 . Recycling Unit Hacks . | . . . Scanalyzer . | . . . Garrison Access Hacks . | . . . Unauthorized Hacks . | . . . Terminals . | . . . Fabricators . | . . . Repair Stations . | . . . Recycling Units . | . . . Scanalyzers . | . . . Garrison Access . | . . . Data Cores Recovered . | . . . Used . | . . . Hacking Detections 3 | . 3 . Full Trace Events 2 | . 2 . Feedback Events . | . . . Feedback Blocked . | . . . Robot Schematics Acquired . | . . . Robots Built . | . . . Authchips . | . . . Time . | . . . Total Robot Build Rating . | . . . Part Schematics Acquired . | . . . Parts Built . | . . . Authchips . | . . . Time . | . . . Total Part Build Rating . | . . . Parts Repaired 1 | . 1 . Time 26 | . 26 . Parts Recycled . | . . . Recycled Matter . | . . . Retrieved Matter . | . . . Retrieved Components . | . . . Parts Scanalyzed . | . . . Part Schematics Acquired . | . . . Parts Damaged . | . . . Bothacking | -11 -10 -9 ------------ Run | Yrd Mat Mat Used RIF Installer . | . . . Robots Hacked . | . . . Non-combat . | . . . Combat . | . . . Robot Hacks Applied . | . . . Relay Couplers Released . | . . . Fabnet Peak Effective % . | . . . Robots Rewired . | . . . Allies Hacked . | . . . Hacks Repelled . | . . . Allies | -11 -10 -9 -------- Run | Yrd Mat Mat Total Allies . | . . . Largest Group . | . . . Highest-Rated Group . | . . . Highest-Rated Ally . | . . . Total Orders . | . . . Ally Attacks . | . . . Total Damage . | . . . Kills . | . . . Allies Corrupted . | . . . Allies Melted . | . . . Intel | -11 -10 -9 ------- Run | Yrd Mat Mat Robot Analysis Total . | . . . Derelict Logs Recovered . | . . . Drone Launches . | . . . Drone Recoveries . | . . . Exploration | -11 -10 -9 ------------- Run | Yrd Mat Mat Turns Passed 1204 | 56 1066 82 Spaces Moved 597 | 46 524 27 Core 21 | 17 3 1 Treads 97 | . 97 . Legs 137 | . 137 . Wheels 342 | 29 287 26 Hover . | . . . Flight . | . . . Fastest Speed 50 | 50 90 115 Average Speed 136 | 101 139 137 Slowest Speed 550 | 200 550 350 Overloaded Moves . | . . . Propulsion Burnouts . | . . . Robots Hopped . | . . . Cave-ins Triggered . | . . . Exploration Rate (%) 34 | 4 92 6 Regions Visited 2 Branch Regions . Pre-discovered Areas . | . . . Known Exits Taken . | . . . Unknown Exits Taken 2 | 1 1 . Scrap Searched . | . . . Spaces Dug . | . . . Terrain Destroyed . | . . . Melee . | . . . Projectile . | . . . AOE . | . . . Terrain Rammed . | . . . Walls Destroyed . | . . . Machines Disabled . | . . . Actions | -11 -10 -9 --------- Run | Yrd Mat Mat Total 845 | 52 738 55 Wait 123 | . 117 6 Move 595 | 45 523 27 Hop . | . . . Pick Up 9 | 1 8 . Fast Attach 16 | 6 9 1 Attach 5 | . 1 4 Detach . | . . . Swap 8 | . 8 . Drop 13 | . 11 2 Fire 76 | . 61 15 Melee . | . . . Ram . | . . . Kick . | . . . Crush . | . . . Escape Stasis . | . . . Rewire . | . . . Trap . | . . . Miscellaneous . | . . . Route ------- -11/Scrapyard -10/Materials (discovered 4 exits: [*Mat x3] / [*Min]) -9/Materials History --------- Turn | Location | Event 8 | -11/Scrapyard | Discovered new exit (range 16) 57 | -11/Scrapyard | Entered Materials 183 | -10/Materials | Discovered new exit (range 10) 307 | -10/Materials | Build established: Mutant 390 | -10/Materials | Discovered new exit (range 7) 519 | -10/Materials | Core integrity fell below 50% 798 | -10/Materials | Repaired Med. Laser 819 | -10/Materials | Build established: Scavenger-Mutant 869 | -10/Materials | Discovered new exit (range 16) 1095 | -10/Materials | Discovered new exit (range 16) 1123 | -10/Materials | Entered another Materials area 1123 | -9/Materials | Evolved 2 slots: Propulsion x1, Utility x1 1205 | -9/Materials | Self-destructed Last Messages --------------- 6x Alarm Trap Map updated. 01051_ K-01 Serf collects debris. 01081_ System corrupted: IFF burst signal emitted. 01095_ EXIT=FOUND PARAMETERS=PROPULSION+1,UTILITY+1 LOCATION=UNKNOWN GOAL=ESCAPE 01124_ Dropped Aluminum Leg. 01149_ R-06 Scavenger collects Aluminum Leg. 01167_ G-34 Mercenary destroyed. 01176_ Particle Gun destroyed. 01178_ R-06 Scavenger collects Aluminum Leg. 01181_ Com. Wheel destroyed. 01183_ Ion Engine destroyed. 01186_ Med. Laser destroyed. 01193_ Lgt. Armor Plating destroyed. 01196_ Lgt. Assault Rifle severed. 01199_ Acquired Lgt. Assault Rifle. 01204_ Lgt. Assault Rifle severed. Map ----- +----------------------------------------------------+ | | | | | | | | | | | ?????????????????????????????????????????????????? | | ????????????????########?????????????????????????? | | ????????????????# #?????????????????????????? | | ????????????????# #?????????????????????????? | | ????????????????# !! #?????????????????????????? | | ????????????????# !! #?????????????????????????? | | ????????????????# #?????????????????????????? | | ?????????????????? ??????????????????????????? | | ????????????????####+####????????????????????????? | | ????????????????# ########?????????????????? | | ????????????????# == # #?????????????????? | | ????????????????# # #?????????????????? | | ????????????????##### # #?????????????????? | | ????????????????????# # #?????????????????? | | ????????????????????# # #?????????????????? | | ??????? ########## + #?????????????????? | | ??????? ########?????????????????? | | ??????? # #??????????????????? | | ??????? # #??????????????????? | | ???????? ########### # """ #??????????????????? | | ????????????????????# #@""" #??????????????????? | | ????????????????????# #l""" #??????????????????? | | ????????????????????+ %;*""" #??????????????????? | | ????????????????????# =#%"""g#??????????????????? | | ????????????????????# # #??????????????????? | | ????????????????????# # #??????????????????? | | ????????????????????# # #??????????????????? | | ????????????????????# # #??????????????????? | | ????????????????????# #######??????????????????? | | ????????????????????# ????????????????????????? | | ????????????????????# ????????????????????????? | | ????????????????????# ????????????????????????? | | ????????????????????# ????????????????????????? | | ????????????????????##+##????????????????????????? | | ?????????????????????????????????????????????????? | | ?????????????????????????????????????????????????? | | ?????????????????????????????????????????????????? | | ?????????????????????????????????????????????????? | | ?????????????????????????????????????????????????? | | ?????????????????????????????????????????????????? | | ?????????????????????????????????????????????????? | | ?????????????????????????????????????????????????? | | ?????????????????????????????????????????????????? | | ?????????????????????????????????????????????????? | | ?????????????????????????????????????????????????? | +----------------------------------------------------+ Best States ------------- Heat Dissipation 35 Energy Generation 10 Energy Capacity 250 Matter Stores 300 Matter Capacity 300 Sight Range 18 Terrain Scan Density 10 Armor Coverage 150 Propulsion Shielding 33 Evasion (%) 42 Recoil Reduction 2 Item Schematics ----------------- None Robot Schematics ------------------ None Fabricated ------------ Nothing Alien Tech Used ----------------- None Achievements -------------- None Challenges ------------ None Game ------ Seed BlastDecoderKatana Manual? 0 Play Time 00:12:15 Cumulative 263.3 hours Start 2024.04.17 @ 18:13:12 End 2024.04.17 @ 18:24:31 Sessions 1 Manual Loads 0 Difficulty Rogue Special Mode None Game No. 204 Rogue 192 Adventurer 12 Explorer 0 Win Type - Total 1 Types 1/0/0/0/0/0/0/0/0 Lore% 30 Gallery% 49 Achievement% 36 Wizard Run 0 Options --------- Layout 1 ASCII 0 Keyboard 0 Movement Mouse Keybinds 0 Fullscreen 1 Font 32/SmallcapsGlow Map View 77x35 Zoom Use 0% Tactical HUD 1 Map Filters NONE Filters NONE Steam 1 RUN: 560be2ea-1ee7-4c65-9132-0e5c2682e1ca